Cogmind - Beta 13 @@@ ROGUE MODE // 2024.05.06 @ 23:29:42 Player: naththebg Result: Destroyed by G-73 Enforcer with Heavy Laser Performance ------------- Evolutions (6) 3000 Regions Visited (10) 2000 Robots Destroyed (199) 995 Value Destroyed (7474) 7474 Prototype IDs (16) 320 Alien Tech Used (0) 0 Bonus (1777) 1777 TOTAL SCORE: 15566 Bonus ------- High Alert Combat Kills 969 Follower Combat Kills 308 Entered DSFs 500 Cogmind --------- Core Integrity 0/1150 Matter 78/300 Energy 100/100 System Corruption 5% Temperature Cool (0) Movement Core (50) Location -4/Factory Parts ------- > --- POWER (2) -------- (None) > --- PROPULSION (4) --- (None) > --- UTILITY (9) ------ (None) > --- WEAPON (4) ------- (None) > --- INVENTORY (5) ---- Micro Fission Core Linear Gravjet Tesla Rifle Heavy Disruptor Cannon Peak State ------------ > --- POWER ------------ F-cell Engine Micro Fission Core > --- PROPULSION ------- Armored Medium Treads Heavy Treads Linear Gravjet > --- UTILITY ---------- Advanced Power Amplifier Advanced Cooling System Huge Storage Unit Matter Compressor Advanced Hacking Suite > --- WEAPON ----------- Advanced Assault Cannon Enhanced Gauss Cannon Smartbomb Launcher > --- INVENTORY -------- Micro Fission Core Micro Fission Core Antigrav System Linear Gravjet Tesla Rifle Heavy Disruptor Cannon [Rating: 87] Favorites ----------- Power Angular Momentum Engine Engine Angular Momentum Engine Power Core Light Nuclear Core Propulsion Light Treads Treads Light Treads Leg Flexi-carbon Leg Wheel Wheel Hover Unit Linear Gravjet Utility Huge Storage Unit Device Improved Cooling System Storage Huge Storage Unit Processor Targeting Computer Hackware Advanced Hacking Suite Protection Layered Medium Armor Plating Weapon Ion Cannon Energy Gun Subdweller Laser Energy Cannon Ion Cannon Ballistic Gun Assault Rifle Ballistic Cannon Magnetic Acceleration Cannon Launcher Mini Grenade Launcher Build | -11 -10 -10 -8 -7 -7 -6 -6 -6 -5 -4 ------- Run | Yrd Mat Sub Mat Fac DSF Fac Ext Cet Fac Fac Slots Evolved 12 | . . . 4 2 . 2 . . 2 2 Power 1 | . . . . 1 . . . . . . Propulsion 2 | . . . 1 . . 1 . . . . Utility 7 | . . . 1 1 . 1 . . 2 2 Weapon 2 | . . . 2 . . . . . . . Parts Attached 185 | 6 8 15 30 3 10 23 59 . 24 7 Power 27 | 1 1 4 4 2 2 3 8 . 2 . Engine 20 | 1 1 4 2 1 . 2 8 . 1 . Core 7 | . . . 2 1 2 1 . . 1 . Reactor . | . . . . . . . . . . . Propulsion 48 | 2 1 1 8 . 1 3 22 . 6 4 Treads 31 | 2 1 1 6 . 1 3 14 . 1 2 Leg 2 | . . . . . . . 2 . . . Wheel 8 | . . . 2 . . . 6 . . . Hover 7 | . . . . . . . . . 5 2 Flight . | . . . . . . . . . . . Utility 56 | 1 4 2 8 1 4 11 16 . 7 2 Device 32 | . . 1 6 1 1 7 10 . 5 1 Storage 7 | 1 2 . . . . 2 . . 1 1 Processor 1 | . 1 . . . . . . . . . Hackware 1 | . . . . . . . . . 1 . Protection 15 | . 1 1 2 . 3 2 6 . . . Artifact . | . . . . . . . . . . . Weapon 54 | 2 2 8 10 . 3 6 13 . 9 1 Energy Gun 3 | . . . 2 . . . . . 1 . Energy Cannon 18 | . . . 6 . . 3 5 . 4 . Ballistic Gun 18 | 2 1 6 2 . 2 2 3 . . . Ballistic Cannon 8 | . . . . . . . 4 . 4 . Launcher 7 | . 1 2 . . 1 1 1 . . 1 Special Weapon . | . . . . . . . . . . . Impact Weapon . | . . . . . . . . . . . Slashing Weapon . | . . . . . . . . . . . Piercing Weapon . | . . . . . . . . . . . Special Melee Weapon . | . . . . . . . . . . . Unidentified Prototypes 3 | . . 1 . . . 1 . . 1 . Parts Lost 82 | . . 3 1 . 9 1 44 . 11 13 Power 12 | . . . 1 . 2 . 7 . . 2 Propulsion 30 | . . 2 . . 1 . 18 . 5 4 Utility 19 | . . . . . 3 . 11 . 1 4 Weapon 21 | . . 1 . . 3 1 8 . 5 3 Highest Loss Streak 20 | . . 2 1 . 7 1 20 . 3 10 To Critical Strikes 2 | . . 1 . . . . 1 . . . Average Slot Usage (%) 88 | . 99 85 99 100 93 92 89 13 42 58 Engine 11 | . 14 18 15 3 . 6 11 . 2 4 Core 3 | . . . 3 11 14 11 1 . 1 4 Treads 21 | . 27 22 19 23 23 24 22 . 1 7 Device 10 | . . 7 13 15 12 17 15 . 8 10 Storage 8 | . 14 11 7 7 7 6 5 . 2 9 Processor 2 | . 9 3 . . . . . . . . Protection 4 | . 4 . 2 7 6 6 8 . . . Energy Cannon 9 | . . . 25 30 18 15 12 . 2 . Ballistic Gun 9 | . 27 17 1 . 5 2 3 6 1 . Ballistic Cannon 1 | . . . . . . . 3 . 4 9 Launcher 1 | . . 5 . . 2 . . . . 1 Naked Turns 18 | . . . . . . . 14 . . 4 Heaviest Build 164 | 12 89 106 122 123 129 153 164 3 50 131 Greatest Support 125 | 40 40 40 62 62 62 90 106 3 70 125 Greatest Overweight (x) 11 | 3 2 5 11 1 2 1 4 . 2 3 Average Overweight (x) 1 | . 1 2 3 1 1 1 1 . . . Largest Inventory Capacity 25 | 8 25 25 25 25 25 25 25 5 5 25 Average Capacity 22 | 7 19 25 25 25 25 24 24 5 5 21 Most Carried 25 | 5 15 25 25 25 25 25 25 3 5 9 Average Carried 17 | 2 10 22 24 24 19 19 20 3 3 4 Final Capacity 25 | 8 25 25 25 25 25 25 5 5 5 5 Final Carried 25 | 3 15 23 25 25 18 20 3 3 3 5 Class Distribution -------------------- 42% | Mutant 30% | Tank 12% | Scavenger-Tank 6% | Scavenger-Gunner 3% | Gunner 3% | Scavenger-Mutant Dominant Class ---------------- Mutant | -10/Materials Mutant | -10/Subcaves Scavenger-Gunner | -8/Materials Tank | -7/Factory Tank | -7/DSF Tank | -6/Factory Scavenger-Tank | -6/Extension Mutant | -6/Cetus Mutant | -5/Factory Mutant | -4/Factory Resources | -11 -10 -10 -8 -7 -7 -6 -6 -6 -5 -4 ----------- Run | Yrd Mat Sub Mat Fac DSF Fac Ext Cet Fac Fac Matter Collected 3846 | 198 354 364 552 . 182 534 1128 . 419 115 Remotely . | . . . . . . . . . . . Salvage Created 8854 | . 483 220 1683 . 442 2255 2827 . 592 352 Parts 380 | . 32 16 65 . 20 91 121 . 23 12 Haulers Intercepted 8 | . 1 . 3 . . 3 1 . . . Recyclers Shooed 10 | . 1 . . . . 4 3 . 1 1 Parts Field Recycled . | . . . . . . . . . . . Retrieved Matter . | . . . . . . . . . . . Parts Self-Destructed 3 | . . 3 . . . . . . . . Prevented . | . . . . . . . . . . . Kills | -11 -10 -10 -8 -7 -7 -6 -6 -6 -5 -4 ------- Run | Yrd Mat Sub Mat Fac DSF Fac Ext Cet Fac Fac Combat Hostiles Destroyed 142 | . 13 8 30 . 11 21 39 . 10 10 Melee 2 | . . . 1 . . . 1 . . . Guns 23 | . 11 5 3 . 1 . 3 . . . Cannons 86 | . . . 25 . 3 15 29 . 10 4 AOE 19 | . 2 3 . . 5 1 2 . . 6 Classes Destroyed 22 | . 6 1 5 . 3 1 5 . 1 . Worker 5 | . 1 . . . . 1 . . 2 1 Builder 13 | . . . 3 . . 1 6 . 1 2 Tunneler 1 | . . . . . . . 1 . . . Hauler 8 | . 1 . 3 . . 3 1 . . . Recycler 12 | . 1 . 1 . . 5 3 . 1 1 Carrier 1 | . . . . . . . 1 . . . Mechanic 1 | . . . 1 . . . . . . . Operator 1 | . . . . . . . . . 1 . Watcher 15 | . 3 . 4 . . 3 3 . . 2 Swarmer 31 | . 9 . 8 . 4 4 1 . 5 . Saboteur 1 | . . . . . . . 1 . . . Grunt 46 | . 4 . 12 . 3 6 17 . . 4 Brawler 5 | . . . 3 . . . 2 . . . Duelist 5 | . . . 1 . 1 . 3 . . . Protector 2 | . . . . . . . 2 . . . Sentry 17 | . . . 6 . . 5 4 . 2 . Specialist 3 | . . . . . 1 2 . . . . Hunter 8 | . . . . . 1 2 2 . 1 2 Programmer 9 | . . . . . . 2 1 . 2 4 Heavy 1 | . . . . . 1 . . . . . Behemoth 2 | . . . . . . . 2 . . . Subdweller 8 | . . 8 . . . . . . . . Thug 2 | . . . . . . . 2 . . . Savage 1 | . . . . . . . 1 . . . Guerrilla 1 | . . . . . . . 1 . . . Best Kill Streak 11 | . 4 3 7 . 4 7 6 . 11 11 Combat Bots Only 7 | . 3 3 6 . 4 5 6 . 7 6 Max Kills in Single Turn 3 | . 3 1 2 . 3 2 3 . 2 2 Gunslinging . | . . . . . . . . . . . Exploded 3 | . 2 1 . . 3 1 2 . . 2 Melee 1 | . . . 1 . . . 1 . . . Uniques/NPCs Destroyed . | . . . . . . . . . . . Combat | -11 -10 -10 -8 -7 -7 -6 -6 -6 -5 -4 -------- Run | Yrd Mat Sub Mat Fac DSF Fac Ext Cet Fac Fac Hostile Shots Fired 1306 | . 42 58 105 . 92 105 520 4 135 245 Missed 403 | . 13 17 21 . 26 38 163 3 32 90 Damage Taken 14510 | . 278 864 893 . 1656 693 5676 21 1652 2777 Core 2571 | . 7 227 106 . 87 38 807 . 146 1153 Absorbed by Shields 896 | . . . . . . 313 571 . 12 . Reduced by Siege Mode 86 | . . . . . . . . . 63 23 Redirected to Shielding 71 | . . . . . 71 . . . . . Ignored by Resistances 500 | . . . 40 . . . 111 . 349 . Regen/Repaired (Parts) 524 | . 66 . 271 . . 187 . . . . Core Remaining (%) 59 | 100 . 6 80 . 87 . . . 85 . Volleys Fired 394 | . 44 34 59 . 19 62 103 . 32 41 Largest 4 | . 2 2 4 . 4 3 4 . 3 2 Hottest 290 | . 50 60 260 . 260 290 290 . 210 105 Shots Fired 1085 | . 88 68 229 . 66 183 314 . 70 67 Gun 268 | . 87 54 41 . 16 8 49 . 13 . Cannon 786 | . . . 188 . 49 174 264 . 57 54 Launcher 31 | . 1 14 . . 1 1 1 . . 13 Special . | . . . . . . . . . . . Kinetic 376 | . 87 54 . . 16 8 117 . 40 54 Thermal 653 | . . . 229 . 49 174 196 . 5 . Explosive 31 | . 1 14 . . 1 1 1 . . 13 Electromagnetic 25 | . . . . . . . . . 25 . Robot Hit Streak 26 | . 9 26 14 . 3 11 13 . 15 11 Robot Miss Streak 11 | . 4 2 11 . 2 4 5 . 2 3 Penetration Max 1 | . . . . . . . 1 . . 1 Secondary Targets . | . . . . . . . . . . . Shots Hit Robots 584 | . 44 41 119 . 30 105 162 . 51 32 Core Hits 295 | . 25 16 52 . 13 39 87 . 24 39 Critical Kills 19 | . . 1 1 . 2 4 11 . . . Critical Parts Destroyed 9 | . . . . . . 1 8 . . . Critical Strikes 42 | . . 2 2 . 2 5 22 . 3 6 Meltdown 12 | . . . 1 . 2 4 5 . . . Destroy 18 | . . 2 1 . . 1 14 . . . Blast 12 | . . . . . . . 3 . 3 6 Melee Attacks . | . . . . . . . . . . . Impact . | . . . . . . . . . . . Slashing . | . . . . . . . . . . . Piercing . | . . . . . . . . . . . Sneak Attacks . | . . . . . . . . . . . Combat Hostiles . | . . . . . . . . . . . Follow-up Attacks . | . . . . . . . . . . . Damage Inflicted 21930 | . 751 1184 2893 . 951 4403 6683 . 2063 3002 Guns 2642 | . 570 666 494 . 87 50 587 . 188 . Cannons 15218 | . . . 2347 . 655 4115 5749 . 1509 843 Explosions 3892 | . 146 518 . . 209 227 303 . 337 2152 Melee . | . . . . . . . . . . . Ramming 178 | . 35 . 52 . . 11 44 . 29 7 Kinetic 4861 | . 570 666 . . 87 50 1751 . 894 843 Thermal 12394 | . . . 2841 . 655 4228 4585 . 85 . Explosive 3461 | . . 518 . . 209 . 303 . 337 2094 Electromagnetic 1036 | . 146 . . . . 114 . . 718 58 Impact . | . . . . . . . . . . . Slashing . | . . . . . . . . . . . Piercing . | . . . . . . . . . . . Highest Corruption 7 | . . . . . . 4 7 7 1 5 Average Corruption 3 | . . . . . . 2 4 7 1 2 Corruption Purged . | . . . . . . . . . . . Corruption Blocked . | . . . . . . . . . . . Effects 90 | . . . . . . 16 63 1 1 9 Message Errors 19 | . . . . . . 4 11 . . 4 Matter Fused 14 | . . . . . . 2 10 . . 2 Heat Flow Errors 13 | . . . . . . 1 11 . . 1 Energy Discharges 11 | . . . . . . 3 8 . . . Data Loss (minor) 12 | . . . . . . . 10 1 . 1 Data Loss (major) 2 | . . . . . . 2 . . . . Misfires 7 | . . . . . . 3 4 . . . Alerts 9 | . . . . . . . 7 . 1 1 Weapon Failures 3 | . . . . . . 1 2 . . . Overload Shots 56 | . . . . . . 21 35 . . . Effects 7 | . . . . . . 1 6 . . . Energy Bleed 3 | . . . . . . 1 2 . . . Heat Surge 4 | . . . . . . . 4 . . . Overflow Damage 960 | . . . 73 . . 530 106 . 126 125 Projectiles 705 | . . . 73 . . 442 106 . 61 23 Explosions 255 | . . . . . . 88 . . 65 102 Melee . | . . . . . . . . . . . Knockbacks 17 | . 1 . . . . . 6 . 4 6 Impact 2 | . 1 . . . . . 1 . . . Kinetic 15 | . . . . . . . 5 . 4 6 Secondary . | . . . . . . . . . . . Self-Inflicted Damage 323 | . 23 . . . . 106 4 . 160 30 Shots 6 | . 1 . . . . 2 . . 2 1 Rammed 28 | . 4 . 9 . . 2 6 . 3 4 Targets Rammed 38 | . 5 . 10 . . 3 13 . 3 4 Kicked 7 | . . . . . . . 7 . . . Crushed 3 | . 1 . 1 . . 1 . . . . Highest Temperature 610 | . 5 . 383 . 312 351 610 . 270 79 Average Temperature 131 | . 5 . 130 . 129 117 156 . 53 31 Received Heat Transfer 3217 | . 48 138 333 . 243 77 1839 9 112 418 Effects 23 | . . . . . . 5 18 . . . Shutdowns 4 | . . . . . . 1 3 . . . Energy Bleed 4 | . . . . . . 1 3 . . . Interference 3 | . . . . . . 3 . . . . Matter Decay 3 | . . . . . . . 3 . . . Short Circuit 3 | . . . . . . . 3 . . . Damage (major) 6 | . . . . . . . 6 . . . Siege Activations 4 | . . . . . . . . . 2 2 Total Turns 79 | . . . . . . . . . 57 22 Longest Duration 53 | . . . . . . . . . 53 17 Robots Corrupted . | . . . . . . . . . . . Combat Hostiles . | . . . . . . . . . . . Parts Fried 5 | . . . . . . 1 1 . 3 . Impact Corruptions . | . . . . . . . . . . . Robots Melted 13 | . . . 1 . 2 5 5 . . . Combat Hostiles 11 | . . . 1 . 2 5 3 . . . Parts Melted 43 | . . 3 7 . 3 9 21 . . . Heat Transferred 13525 | . . . 4325 . 999 3395 4695 . 111 . Parts Sabotaged 3 | . . . . . . . 3 . . . Parts Stolen . | . . . . . . . . . . . Parts Stripped . | . . . . . . . . . . . Power Chain Reactions 1 | . 1 . . . . . . . . . Alert | -11 -10 -10 -8 -7 -7 -6 -6 -6 -5 -4 ------- Run | Yrd Mat Sub Mat Fac DSF Fac Ext Cet Fac Fac Peak Influence 929 | . 176 . 670 194 320 814 929 520 610 568 Initial 520 | . . . . 185 135 168 367 520 291 262 Average 330 | . 55 . 300 190 204 203 669 520 399 351 Maximum Alert Level 3 | . . . 2 . 1 3 3 2 2 2 Low Security (%) 45 | 100 100 . 44 100 56 67 . . . 6 Level 1 15 | . . . 6 . 43 15 7 . 59 55 Level 2 26 | . . . 48 . . 6 49 100 40 37 Level 3 13 | . . . . . . 10 43 . . . Level 4 . | . . . . . . . . . . . Level 5 . | . . . . . . . . . . . High Security . | . . . . . . . . . . . Max Security . | . . . . . . . . . . . Sterilizations 1 | . . . . . 1 . . . . . Squads Dispatched 36 | . 2 . 6 . 2 7 8 . 2 9 Investigation 5 | . 1 . 2 . . . 1 . . 1 Extermination 5 | . . . . . . 2 . . 1 2 Reinforcement 12 | . 1 . 1 . 2 2 2 . 1 3 Assault 9 | . . . . . . 1 5 . . 3 Garrison 5 | . . . 3 . . 2 . . . . Intercept . | . . . . . . . . . . . Searches Triggered . | . . . . . . . . . . . Construction Impeded 5 | . . . . . . . 1 . 1 3 Haulers Reinforced 1 | . . . . . . 1 . . . . Active Scanning Responses . | . . . . . . . . . . . Cargo Convoy Interrupts . | . . . . . . . . . . . Stealth | -11 -10 -10 -8 -7 -7 -6 -6 -6 -5 -4 --------- Run | Yrd Mat Sub Mat Fac DSF Fac Ext Cet Fac Fac Distress Signals 15 | . 1 . 7 . . 2 . 1 1 3 Communications Jammed . | . . . . . . . . . . . Distress Signals . | . . . . . . . . . . . Times Spotted 236 | . 24 8 42 . 12 28 80 4 15 23 Peak Tracking Total 10 | . 4 3 7 . 4 4 10 5 5 10 Tactical Retreats 17 | . 1 . 3 . 1 2 9 . 1 . Traps | -11 -10 -10 -8 -7 -7 -6 -6 -6 -5 -4 ------- Run | Yrd Mat Sub Mat Fac DSF Fac Ext Cet Fac Fac Traps Triggered 6 | . 1 . . . . 2 3 . . . Indirectly . | . . . . . . . . . . . Trap Hack Attempts . | . . . . . . . . . . . Triggered . | . . . . . . . . . . . Disarmed 7 | . 7 . . . . . . . . . Reprogrammed . | . . . . . . . . . . . Reused . | . . . . . . . . . . . Traps Extracted . | . . . . . . . . . . . Installed . | . . . . . . . . . . . Triggered . | . . . . . . . . . . . Machines | -11 -10 -10 -8 -7 -7 -6 -6 -6 -5 -4 ---------- Run | Yrd Mat Sub Mat Fac DSF Fac Ext Cet Fac Fac Machines Disabled 32 | . 5 1 1 . . 8 5 . 7 5 Max in Single Turn 3 | . 3 1 1 . . 3 1 . 3 2 Garrison Access 1 | . . . . . . 1 . . . . Machines Repaired . | . . . . . . . . . . . Machines Dismantled . | . . . . . . . . . . . Machines Sabotaged . | . . . . . . . . . . . Overloaded Fab Kills . | . . . . . . . . . . . Hacking | -11 -10 -10 -8 -7 -7 -6 -6 -6 -5 -4 --------- Run | Yrd Mat Sub Mat Fac DSF Fac Ext Cet Fac Fac Machines Accessed 40 | . 9 1 7 2 . 6 10 . 4 1 Terminals 28 | . 7 . 4 2 . 2 9 . 4 . Fabricators 1 | . . . . . . . . . . 1 Repair Stations 4 | . 1 . 2 . . 1 . . . . Recycling Units 4 | . 1 . 1 . . 1 1 . . . Scanalyzers 2 | . . . . . . 2 . . . . Garrison Access . | . . . . . . . . . . . Total Hacks 101 | . 19 9 21 5 . 17 20 . 7 3 Successful 50 | . 9 9 15 2 . 9 4 . 2 . Failed 51 | . 10 . 6 3 . 8 16 . 5 3 Catastrophic 17 | . 6 . 1 . . 2 6 . 2 . Database Lockouts . | . . . . . . . . . . . Manual 14 | . 5 1 6 . . . 2 . . . Terminals 61 | . 14 . 13 5 . 4 18 . 7 . Fabricators 3 | . . . . . . . . . . 3 Repair Stations 13 | . 3 . 7 . . 3 . . . . Recycling Units 7 | . 2 . 1 . . 2 2 . . . Scanalyzers 8 | . . . . . . 8 . . . . Garrison Access . | . . . . . . . . . . . Terminal Hacks 32 | . 6 9 8 2 . 1 4 . 2 . Record 9 | . . 8 1 . . . . . . . Prototype ID Bank 2 | . 1 . . . . . 1 . . . Open Door 1 | . . . . . . . 1 . . . Open DSF 2 | . . . . 1 . . . . 1 . Level Access Points 1 | . 1 . . . . . . . . . Branch Access Points 1 | . . . 1 . . . . . . . Emergency Access Points 2 | . . . 2 . . . . . . . Terminal Index 1 | . . . . . . . 1 . . . Alert Level 4 | . . . 2 . . 1 1 . . . Unreport Threat 2 | . 1 . 1 . . . . . . . Disarm Traps 2 | . 2 . . . . . . . . . Dispatch Records 1 | . . . . 1 . . . . . . Maintenance Status 1 | . . . . . . . . . 1 . Hauler Manifests 1 | . . . 1 . . . . . . . Zone Layout 1 | . 1 . . . . . . . . . Derelict Proto ID Bank 1 | . . 1 . . . . . . . . Fabricator Hacks . | . . . . . . . . . . . Repair Station Hacks 11 | . 3 . 6 . . 2 . . . . Scan Component 5 | . 1 . 3 . . 1 . . . . Repair 5 | . 1 . 3 . . 1 . . . . Refit 1 | . 1 . . . . . . . . . Recycling Unit Hacks 1 | . . . 1 . . . . . . . Retrieve Components 1 | . . . 1 . . . . . . . Scanalyzer 6 | . . . . . . 6 . . . . Insert Component 3 | . . . . . . 3 . . . . Analyze 3 | . . . . . . 3 . . . . Garrison Access Hacks . | . . . . . . . . . . . Unauthorized Hacks . | . . . . . . . . . . . Terminals . | . . . . . . . . . . . Fabricators . | . . . . . . . . . . . Repair Stations . | . . . . . . . . . . . Recycling Units . | . . . . . . . . . . . Scanalyzers . | . . . . . . . . . . . Garrison Access . | . . . . . . . . . . . Data Cores Recovered 1 | . . . . . . . . . 1 . Used 1 | . . . . . . . . . 1 . Hacking Detections 34 | . 9 . 5 2 . 5 9 . 3 1 Full Trace Events 4 | . . . 2 . . . 1 . . 1 Feedback Events . | . . . . . . . . . . . Feedback Blocked . | . . . . . . . . . . . Robot Schematics Acquired . | . . . . . . . . . . . Robots Built . | . . . . . . . . . . . Authchips . | . . . . . . . . . . . Time . | . . . . . . . . . . . Total Robot Build Rating . | . . . . . . . . . . . Part Schematics Acquired 3 | . . . . . . 3 . . . . Parts Built . | . . . . . . . . . . . Authchips . | . . . . . . . . . . . Time . | . . . . . . . . . . . Total Part Build Rating . | . . . . . . . . . . . Parts Repaired 5 | . 1 . 3 . . 1 . . . . Time 166 | . 26 . 102 . . 38 . . . . Parts Recycled . | . . . . . . . . . . . Recycled Matter . | . . . . . . . . . . . Retrieved Matter . | . . . . . . . . . . . Retrieved Components 1 | . . . 1 . . . . . . . Parts Scanalyzed 3 | . . . . . . 3 . . . . Part Schematics Acquired 3 | . . . . . . 3 . . . . Parts Damaged . | . . . . . . . . . . . Bothacking | -11 -10 -10 -8 -7 -7 -6 -6 -6 -5 -4 ------------ Run | Yrd Mat Sub Mat Fac DSF Fac Ext Cet Fac Fac Used RIF Installer . | . . . . . . . . . . . Robots Hacked . | . . . . . . . . . . . Non-combat . | . . . . . . . . . . . Combat . | . . . . . . . . . . . Robot Hacks Applied . | . . . . . . . . . . . Relay Couplers Released 2 | . . . . . . 2 . . . . Machine Destruction 2 | . . . . . . 2 . . . . Fabnet Peak Effective % . | . . . . . . . . . . . Robots Rewired . | . . . . . . . . . . . Allies Hacked . | . . . . . . . . . . . Hacks Repelled . | . . . . . . . . . . . Allies | -11 -10 -10 -8 -7 -7 -6 -6 -6 -5 -4 -------- Run | Yrd Mat Sub Mat Fac DSF Fac Ext Cet Fac Fac Total Allies 7 | . . . . . . . 7 . . . Largest Group 4 | . . . . . . . 4 . . . Highest-Rated Group 190 | . . . . . . . 190 . . . Highest-Rated Ally 159 | . . . . . . . 159 . . . Total Orders . | . . . . . . . . . . . Ally Attacks 52 | . . . . . . . 52 . . . Total Damage 1008 | . . . . . . . 1008 . . . Kills 9 | . . . . . . . 9 . . . Allies Corrupted . | . . . . . . . . . . . Allies Melted . | . . . . . . . . . . . Intel | -11 -10 -10 -8 -7 -7 -6 -6 -6 -5 -4 ------- Run | Yrd Mat Sub Mat Fac DSF Fac Ext Cet Fac Fac Robot Analysis Total . | . . . . . . . . . . . Derelict Logs Recovered . | . . . . . . . . . . . Drone Launches . | . . . . . . . . . . . Drone Recoveries . | . . . . . . . . . . . Exploration | -11 -10 -10 -8 -7 -7 -6 -6 -6 -5 -4 ------------- Run | Yrd Mat Sub Mat Fac DSF Fac Ext Cet Fac Fac Turns Passed 12366 | 85 1994 2150 1400 256 394 2062 2686 27 554 758 Spaces Moved 4515 | 57 703 608 459 104 95 682 1039 54 410 304 Core 235 | 23 . . . . . . 117 54 10 31 Treads 3589 | 34 703 608 266 104 95 682 799 . 39 259 Legs 78 | . . . . . . . 7 . 71 . Wheels 309 | . . . 193 . . . 116 . . . Hover 304 | . . . . . . . . . 290 14 Flight . | . . . . . . . . . . . Fastest Speed 28 | 50 160 320 155 241 241 237 50 50 28 40 Average Speed 219 | 123 240 322 214 241 245 238 208 50 72 201 Slowest Speed 560 | 200 320 560 245 241 321 241 480 50 200 410 Overloaded Moves . | . . . . . . . . . . . Propulsion Burnouts . | . . . . . . . . . . . Robots Hopped . | . . . . . . . . . . . Cave-ins Triggered . | . . . . . . . . . . . Exploration Rate (%) 38 | 4 97 37 33 3 98 19 87 23 13 10 Regions Visited 10 Branch Regions 3 Pre-discovered Areas 1 | . . 1 . . . . . . . . Known Exits Taken 1 | . . . . 1 . . . . . . Unknown Exits Taken 8 | 1 1 1 1 . . 1 1 1 1 . Scrap Searched 5 | . . 5 . . . . . . . . Spaces Dug 50 | . 12 18 . . . 11 1 . . 8 Terrain Destroyed 353 | . 15 55 32 . . 70 40 . 45 96 Melee . | . . . . . . . . . . . Projectile 108 | . . . 32 . . 16 40 . 4 16 AOE 245 | . 15 55 . . . 54 . . 41 80 Terrain Rammed . | . . . . . . . . . . . Walls Destroyed . | . . . . . . . . . . . Machines Disabled . | . . . . . . . . . . . Actions | -11 -10 -10 -8 -7 -7 -6 -6 -6 -5 -4 --------- Run | Yrd Mat Sub Mat Fac DSF Fac Ext Cet Fac Fac Total 6113 | 72 911 735 717 110 213 993 1325 53 604 380 Wait 743 | 1 126 48 108 . 86 183 60 . 120 11 Move 4505 | 56 702 607 458 103 94 681 1038 53 409 304 Hop . | . . . . . . . . . . . Pick Up 162 | 9 19 21 31 3 2 23 35 . 10 9 Fast Attach 13 | . . . . . . . . . 11 2 Attach 100 | 6 2 5 12 2 9 7 39 . 13 5 Detach 7 | . . . . . 1 1 1 . 3 1 Swap 72 | . 6 10 18 1 1 16 20 . . . Drop 77 | . 7 10 21 1 1 17 14 . 3 3 Fire 394 | . 44 34 59 . 19 62 103 . 32 41 Melee . | . . . . . . . . . . . Ram 6 | . . . . . . . 1 . 2 3 Kick 7 | . . . . . . . 7 . . . Crush 25 | . 5 . 10 . . 3 5 . 1 1 Escape Stasis 2 | . . . . . . . 2 . . . Rewire . | . . . . . . . . . . . Trap . | . . . . . . . . . . . Miscellaneous . | . . . . . . . . . . . Route ------- -11/Scrapyard -10/Materials (discovered 5 exits: *Mat x3 / [*Min] / *Sub) -10/Subcaves -8/Materials (discovered 2 exits: *Fac / Sto) -7/Factory -7/DSF -6/Factory -6/Extension (discovered 3 exits: *Fac x2 / [*Cet]) -6/Cetus -5/Factory (discovered 2 exits: *Fac / [*Upp]) -4/Factory History --------- Turn | Location | Event 33 | -11/Scrapyard | Discovered new exit (range 15) 86 | -11/Scrapyard | Entered Materials 247 | -10/Materials | Identified exit to Materials 286 | -10/Materials | Discovered new exit (range 9) 327 | -10/Materials | Build established: Mutant 1823 | -10/Materials | Repaired Lgt. Treads 1925 | -10/Materials | Discovered new exit (range 6) 2080 | -10/Materials | Entered Subcaves 2113 | -10/Subcaves | Learned location of Zion (-7) 2113 | -10/Subcaves | Met a Zionite searching for "candidates" 2599 | -10/Subcaves | A Subdweller sparked back to life 2599 | -10/Subcaves | A Subdweller sparked back to life 2599 | -10/Subcaves | A Subdweller sparked back to life 2620 | -10/Subcaves | Core integrity fell below 50% 2708 | -10/Subcaves | Found Prototype Device 2709 | -10/Subcaves | Identified Power Bank 2710 | -10/Subcaves | Attached Power Bank, gained temporary slots: Power x3 3078 | -10/Subcaves | Visited 4L-MR0's lab 3139 | -10/Subcaves | Found Powered Cannon 3323 | -10/Subcaves | A swath of the cavern ceiling suddenly collapsed 3831 | -10/Subcaves | Disturbed a concealed Subdweller 4063 | -10/Subcaves | Discovered new exit (range 15) 4188 | -10/Subcaves | Core integrity fell below 20% 4230 | -10/Subcaves | Entered Materials 4230 | -8/Materials | Evolved 4 slots: Propulsion x1, Utility x1, Weapon x2 4375 | -8/Materials | Repaired Lgt. Treads 4533 | -8/Materials | Build established: Gunner 4610 | -8/Materials | Identified exit to Storage 4727 | -8/Materials | Garrison activated, responded to threat 4847 | -8/Materials | Build established: Scavenger-Gunner 5238 | -8/Materials | Repaired Ion Cannon 5305 | -8/Materials | Repaired Ion Cannon 5553 | -8/Materials | Discovered new exit (range 15) 5630 | -8/Materials | Entered Factory 5630 | -7/Factory | Evolved 2 slots: Power x1, Utility x1 5635 | -7/Factory | Identified exit to DSF 5695 | -7/Factory | Build established: Tank 5886 | -7/Factory | Entered DSF 5886 | -7/DSF | Met a pair of Sappers preparing to destroy DSF 5913 | -7/DSF | Additional patrols routed to DSF 5993 | -7/DSF | Lost 7 parts (2p1n3u1w) 6146 | -7/DSF | Discovered new exit (range 15) 6171 | -7/DSF | Sterilization system engaged 6191 | -7/DSF | Ambient heat levels rising (+10) 6206 | -7/DSF | Ambient heat levels rising (+10) 6221 | -7/DSF | Ambient heat levels rising (+10) 6236 | -7/DSF | Ambient heat levels rising (+10) 6251 | -7/DSF | Ambient heat levels rising (+10) 6266 | -7/DSF | Ambient heat levels rising (+10) 6280 | -7/DSF | Entered Factory 6280 | -6/Factory | Evolved 2 slots: Propulsion x1, Utility x1 6283 | -6/Factory | Attached Powered Cannon, gained temporary slot: Power 6378 | -6/Factory | Repaired Arm. Treads 7711 | -6/Factory | Garrison activated, responded to threat 7948 | -6/Factory | Garrison activated, responded to threat 8099 | -6/Factory | Discovered new exit (range 13) 8342 | -6/Factory | Entered Extension 8640 | -6/Extension | Rescued a captive Derelict 8906 | -6/Extension | Rescued A7 9028 | -6/Extension | Rescued a captive Derelict 9042 | -6/Extension | First assault squad dispatched 9093 | -6/Extension | Spotted B-75 Beast 9104 | -6/Extension | Spotted B-75 Beast 9115 | -6/Extension | Destroyed B-75 Beast 9172 | -6/Extension | Lost 4 parts (2n2w) 9211 | -6/Extension | Destroyed B-75 Beast 9521 | -6/Extension | Extracted ID and sensor layout for unrecognized location from A7's data core 9550 | -6/Extension | Discovered new exit (range 3) 9574 | -6/Extension | Build established: Scavenger-Tank 9634 | -6/Extension | Rescued a captive Derelict 9635 | -6/Extension | Rescued a captive Derelict 9682 | -6/Extension | Rescued a captive Derelict 9692 | -6/Extension | Rescued a captive Derelict 9867 | -6/Extension | Disrupted transfer network 10257 | -6/Extension | Discovered new exit (range 10) 10259 | -6/Extension | Discovered new exit (range 6) 10563 | -6/Extension | Lost 11 parts (1p6n3u1w) 10756 | -6/Extension | Build established: Scavenger-Mutant 10897 | -6/Extension | Lost 3 parts (1p2n) 10943 | -6/Extension | Core integrity fell below 50% 10974 | -6/Extension | Lost 20 parts (4p6n6u4w) 10984 | -6/Extension | Core integrity fell below 20% 11028 | -6/Extension | Entered Cetus 11036 | -6/Cetus | Spotted Cetus Guard 11036 | -6/Cetus | Spotted Cetus Guard 11036 | -6/Cetus | Spotted Cetus Guard 11040 | -6/Cetus | Lost 3 parts (2n1u) 11048 | -6/Cetus | Discovered new exit (range 16) 11055 | -6/Cetus | Entered Factory 11055 | -5/Factory | Evolved 2 slots: Utility x2 11122 | -5/Factory | Identified exit to DSF 11202 | -5/Factory | Lost 3 parts (1n1u1w) 11217 | -5/Factory | Build established: Mutant 11368 | -5/Factory | Spotted B-75 Beast 11425 | -5/Factory | Discovered new exit (range 12) 11427 | -5/Factory | Discovered new exit (range 15) 11430 | -5/Factory | Lost 3 parts (1n2w) 11528 | -5/Factory | Lost 3 parts (2n1w) 11529 | -5/Factory | Destroyed 7 combat bots 11609 | -5/Factory | Entered another Factory area 11609 | -4/Factory | Evolved 2 slots: Utility x2 12339 | -4/Factory | Core integrity fell below 50% 12359 | -4/Factory | First assault squad dispatched 12362 | -4/Factory | Core integrity fell below 20% 12367 | -4/Factory | Destroyed by G-73 Enforcer with Heavy Laser Last Messages --------------- K-01 Serf destroyed. Penetrated by Slug. Slug penetrates Recycling Unit. Slug penetrates Door. System corrupted: Component data lost. ALERT: Significant disruption in Zone 4X, multiple assault carriers dispatched. Penetrated by Slug. Dropped Matter Compressor. Matter Pump disabled. Penetrated by Slug. Slug penetrates Wall. Penetrated by Slug. C-30 ARC bursts open, deploying its payload. G-73 Enforcer unfolds itself. B-60 Warrior unfolds itself. G-67 Veteran unfolds itself. B-60 Warrior unfolds itself. I-47 Archangel unfolds itself. [Achievement: Just Browsing] Map ----- +----------------------------------------------------+ | ?????????????????????????????????????????????????? | | ?????????????????????????????????????????????????? | | ?????????????????????????????????????????????????? | | ?????????????????????????????????????????????????? | | ?????????????????????????????????????????????????? | | ?????????????????????????????????????????????????? | | ?????????????????????????????????????????????????? | | ?????????????????????????????????????????????????? | | ?????????????????????????????????????????????????? | | ?????????????????????????????????????????????????? | | ??????????????????????? ?????????????????????? | | ??????????????????????? ???????????????????? | | ??????????????????????? "???????????????????? | | ??????????????????????? ""??????????????????? | | ??????????????????????? ""??????????????????? | | ???????????????????????" ??????????????????? | | ???????????????????????? """?????????????????? | | ???????????????????????G """ ????????????????? | | ???????????????????????? """ ?????????????? | | ???????????????????????" #???????????? | | ???????????????????????? """ #???????????? | | ???????????????????????? """ #???????????? | | ????????????????????????#i """ ###??###?#### | | ????????????#############bgA # ?? ? | | ????????????# #%g """ # ? ? | | ????????????#! #@b """ # """ """ | | ????????????# # """ # """ """ | | ????????????# """ + # """ """ | | ??????????????""" "" # """ ! # | | ??????????????""" "F"" # """ %## """ """ | | ????????????? """" # ! %"" ## """ """ | | ????????????############### gh ## """ """ | | ???????????# """"""""""" # gg ## | | ???????????# """"T"""" "gh ## *= | | ???????????# # " " ## ! | | ???????????#! # "Y" ###/########## | | ???????????# """"""""" # "" | | ?????????????? # =%= | | ??????????????############# % | | ??????????????????????????###+##############+# | | ????????????????????????????????# # % | | ????????????????????????????????# % | | ????????????????????????????????# %# | | ????????????????????????????????# # | | ????????????????????????????????# # | | ????????????????????????????????############## | | ????????????????????????????????# # | | ????????????????????????????????# # | | ????????????????????????????????# # | | ????????????????????????????????# # | +----------------------------------------------------+ Best States ------------- Heat Dissipation 91 Coolant Potential 50 Energy Generation 40 Energy Capacity 560 Matter Stores 550 Matter Capacity 550 Sight Range 16 Terrain Scan Density 10 Power Amplification 30 Armor Coverage 600 Resistance: KI 25 Weapon Shielding 66 Evasion (%) 59 Targeting Accuracy 5 Recoil Reduction 4 Offensive Hacking 14 Item Schematics ----------------- Magnetic Acceleration Cannon | -6/Factory | Scanalyzed Lyr. Medium Armor Plating | -6/Factory | Scanalyzed Med. Treads | -6/Factory | Scanalyzed Robot Schematics ------------------ None Fabricated ------------ Nothing Alien Tech Used ----------------- None Achievements -------------- Dynamic Key Just Browsing Preemptive Strike Prison Break Challenges ------------ None Game ------ Seed CargoGammaFrame Manual? 0 Play Time 02:19:44 Cumulative 26.1 hours Start 2024.05.06 @ 21:07:52 End 2024.05.06 @ 23:29:42 Sessions 1 Manual Loads 0 Difficulty Rogue Special Mode None Game No. 15 Rogue 15 Adventurer 0 Explorer 0 Win Type - Total 0 Types 0/0/0/0/0/0/0/0/0 Lore% 11 Gallery% 27 Achievement% 18 Wizard Run 0 Options --------- Layout 1 ASCII 0 Keyboard 0 Movement Mouse Keybinds 0 Fullscreen 1 Font 24/Smallcaps Map View 50x35 Zoom Use 0% Tactical HUD 0 Map Filters NONE Filters NONE Steam 1 RUN: 699772ec-3993-45f7-86b4-f3f54013cee2